bitfinex/quotes_ETHUSD_20240614
["timestamp","ask_amount","ask_price","bid_price","bid_amount"]
[1718404621405,1.19234828,3471.7,3470.2,3.76804514]
[1718404621406,0.89093165,3471.5,3470.2,3.76804514]
[1718404621705,0.0602371,3471.2,3470.3,0.41696076]
[1718404621888,0.06027931,3471.4,3470.3,0.41696076]
[1718404622089,0.06026918,3471.1,3470.3,0.41696076]
[1718404622402,1.19234828,3471.6,3470.3,0.41696076]
[1718404622403,0.89093165,3471.4,3470.3,0.41696076]
[1718404622792,0.06027593,3471.3,3470.3,0.41696076]
[1718404622994,0.06027593,3471.3,3470.4,0.31531233]
[1718404623192,0.89093165,3471.5,3470.5,0.04988679]
[1718404623396,0.06029413,3471.4,3470.6,2.3346]
[1718404623615,0.78650863,3472.1,3470.6,2.3346]
[1718404623616,0.89093165,3471.8,3470.7,0.04988391]
[1718404623835,0.89093165,3471.8,3470.8,0.05550959]
[1718404623983,0.89093165,3471.9,3470.8,0.59452055]
[1718404624178,0.06037436,3471.8,3470.8,0.59452055]
[1718404624383,0.06037436,3471.8,3470.9,2.3346]
[1718404624610,0.89093165,3472.0,3471.0,0.05550639]
[1718404624808,0.06060291,3471.7,3471.0,0.05550639]
[1718404625007,0.89093165,3472.1,3471.0,0.34841813]
[1718404625229,0.06059954,3471.6,3470.9,2.3346]
[1718404625526,0.89093165,3471.8,3470.9,2.3346]
[1718404626030,0.06070298,3471.7,3470.9,2.3346]
[1718404626603,0.89093165,3471.9,3470.9,2.3346]
[1718404626789,0.41238257,3471.8,3470.9,2.3346]
[1718404627828,0.89093165,3471.7,3470.9,2.3346]
[1718404627990,0.95146877,3471.7,3470.9,2.3346]
[1718404628186,2.38491391,3471.7,3470.9,2.3346]
[1718404628629,2.32437679,3471.6,3470.9,2.3346]
[1718404628826,0.39289347,3471.5,3470.9,2.3346]
[1718404629029,0.45343123,3471.5,3470.9,2.3346]
[1718404629199,1.34436288,3471.5,3470.9,2.3346]
[1718404630089,2.77780802,3471.5,3470.9,2.3346]
[1718404630294,0.89093165,3471.3,3470.2,2.2547]
[1718404630624,0.06039423,3471.2,3470.2,2.2547]
[1718404631437,0.95132588,3471.2,3470.2,2.2547]
[1718404632402,0.06039423,3471.2,3470.2,2.2547]
[1718404634313,0.95132588,3471.2,3470.2,2.2547]
[1718404634625,1.33681589,3471.2,3470.2,2.2547]
[1718404634791,0.44588424,3471.2,3470.2,2.2547]
[1718404635987,1.33681589,3471.2,3470.2,2.2547]
[1718404636221,0.89093165,3471.1,3470.2,2.2547]
[1718404636437,0.95124419,3471.1,3470.2,2.2547]
[1718404636616,0.39625276,3471.0,3470.2,2.2547]
[1718404636818,0.45652856,3471.0,3470.2,2.2547]
[1718404638649,1.8899737,3471.0,3470.2,2.2547]
[1718404638793,0.89093165,3470.9,3470.2,2.2547]
[1718404638993,0.06025422,3470.8,3470.2,2.2547]
[1718404639232,0.27808838,3470.7,3470.2,2.2547]
[1718404639433,0.33833549,3470.7,3470.2,2.2547]
[1718404640437,0.33833549,3470.7,3469.8,2.382]
[1718404640594,1.77178063,3470.7,3469.8,2.382]
[1718404643165,1.43344514,3470.6,3469.8,2.382]
[1718404643483,0.32634846,3470.5,3469.8,2.382]
[1718404645770,1.7597936,3470.5,3469.8,2.382]
[1718404646860,1.7597936,3470.5,3469.3,2.382]
[1718404648391,1.7597936,3470.5,3470.3,1.627]
[1718404648392,0.06007723,3470.5,3470.3,1.627]
[1718404648598,0.06007723,3470.5,3470.4,2.40195447]
[1718404648817,0.89093165,3471.7,3470.4,2.40195447]
[1718404648957,2.68098755,3471.7,3470.5,0.40289545]
[1718404649157,0.06007725,3471.6,3470.6,0.01995332]
[1718404651153,0.06007725,3471.6,3470.5,0.40289545]
[1718404651354,0.9510089,3471.6,3470.5,0.40289545]
[1718404651561,0.9510089,3471.6,3470.4,2.382]
[1718404651562,0.39334131,3471.5,3470.4,2.382]
[1718404652058,2.3847884,3471.4,3470.4,2.382]
[1718404652287,0.89093165,3471.3,3470.4,2.382]
[1718404652481,0.06040486,3471.2,3470.4,2.382]
[1718404652691,0.95133651,3471.2,3470.4,2.382]
[1718404653001,0.60573475,3471.2,3470.4,2.382]
[1718404653191,1.4966664,3471.2,3470.4,2.382]
[1718404653561,0.60573475,3471.2,3470.4,2.382]
[1718404654867,1.4966664,3471.2,3470.4,2.382]
[1718404658704,2.32437679,3471.1,3470.4,2.382]
[1718404659003,2.32437679,3471.1,3469.3,0.60408104]
[1718404659004,0.89093165,3470.9,3469.7,2.4772]
[1718404659211,2.32437679,3470.8,3469.7,2.4772]
[1718404659383,2.38459022,3470.8,3469.7,2.4772]
[1718404662413,0.89093165,3470.6,3469.7,2.4772]
[1718404662583,1.43344514,3470.6,3469.7,2.4772]
[1718404662785,0.06007727,3470.5,3469.7,2.4772]
[1718404668836,0.89093165,3470.7,3469.8,0.05763362]
[1718404669038,2.32437679,3470.7,3469.8,0.05763362]
[1718404669218,0.05888005,3470.6,3469.8,0.05763362]
[1718404670149,0.05888005,3470.6,3469.7,2.4772]
[1718404671541,0.05888005,3470.6,3469.8,0.05665196]
[1718404672604,0.05888005,3470.6,3469.7,2.4772]
[1718404673120,0.05888005,3470.6,3469.8,0.05763364]
[1718404673508,0.41644056,3470.6,3469.7,2.4772]
[1718404674057,1.98344514,3470.5,3469.1,2.4711]
[1718404674349,0.05885846,3470.4,3469.1,2.4711]
[1718404674651,1.4923036,3470.4,3469.1,2.4711]
[1718404674812,0.4483144,3470.3,3469.1,3.2413181]
[1718404675245,0.05885171,3470.2,3469.1,3.2413181]
[1718404675442,0.05885171,3470.2,3469.2,0.05763978]
[1718404675909,0.05885171,3470.2,3469.3,0.05763978]
[1718404676307,0.05885171,3470.2,3469.4,2.4711]
[1718404676559,1.24849216,3470.6,3469.5,0.25287398]
[1718404676560,0.89093165,3470.6,3469.5,0.25287398]
[1718404676722,0.058789,3470.1,3469.5,0.25287398]
[1718404677048,0.89093165,3470.6,3469.5,0.25287398]
[1718404677562,0.0588025,3470.5,3469.5,0.25287398]
[1718404680353,0.0588025,3470.5,3469.6,0.05525973]
[1718404680525,0.0588025,3470.5,3469.5,0.25287398]
[1718404680851,0.27301074,3470.5,3469.5,0.25287398]
[1718404681543,0.0588025,3470.5,3469.5,0.25287398]
[1718404681716,0.0588025,3470.5,3469.7,2.4711]
[1718404681916,1.19234828,3471.0,3469.7,2.4711]
[1718404681917,0.89093165,3470.9,3469.7,2.4711]
[1718404682117,0.94592286,3470.8,3469.7,2.4711]
[1718404683842,0.05499121,3470.8,3469.7,2.4711]
[1718404684054,0.94592286,3470.8,3469.8,0.71574191]
[1718404685008,0.94592286,3470.8,3470.1,0.678]
[1718404685210,0.94592286,3470.8,3469.7,2.4711]
[1718404685411,0.89093165,3470.7,3469.9,0.678]
[1718404685710,0.05507716,3470.6,3469.9,0.678]
[1718404685906,0.35718022,3470.5,3469.9,0.678]
[1718404686144,0.05507041,3470.4,3469.9,0.678]
[1718404686551,0.89093165,3470.7,3469.9,0.678]
[1718404686752,0.05507716,3470.6,3469.9,0.678]
[1718404687348,0.05507716,3470.6,3469.7,2.4711]
[1718404687652,0.05507716,3470.6,3469.9,0.678]
[1718404687819,0.48005738,3470.6,3469.9,0.678]
[1718404689554,0.05507716,3470.6,3469.9,0.678]
[1718404689859,0.05507716,3470.6,3470.1,0.678]
[1718404690222,0.89093165,3470.8,3470.0,0.678]
[1718404690422,0.05323873,3470.5,3470.0,0.678]
[1718404690625,0.89093165,3470.8,3470.0,0.678]
[1718404690845,0.05323536,3470.4,3470.0,0.678]
[1718404691053,1.30318647,3470.8,3470.0,0.678]
[1718404691054,0.89093165,3470.8,3470.0,0.678]
[1718404691236,0.05323198,3470.3,3470.0,0.678]
[1718404691462,0.89093165,3470.8,3470.0,0.678]
[1718404691634,0.05322861,3470.2,3470.0,0.678]
[1718404691957,0.89093165,3470.8,3469.7,2.4711]
[1718404691958,0.05322523,3470.1,3469.7,2.4711]
[1718404692122,0.05322523,3470.1,3469.9,0.678]
[1718404692317,0.89093165,3470.6,3469.9,0.678]
[1718404692539,0.26156672,3470.5,3469.9,0.678]
[1718404693832,0.26156672,3470.5,3469.7,2.4711]
[1718404694033,0.26156672,3470.5,3469.9,0.678]
[1718404694233,0.05323873,3470.5,3469.9,0.678]
[1718404697164,0.05323873,3470.5,3470.1,0.678]
[1718404697372,0.94417038,3470.5,3470.1,0.678]
[1718404700378,0.05323873,3470.5,3470.1,0.678]
[1718404700687,0.05323873,3470.5,3470.2,0.05762643]
[1718404701877,0.94417038,3470.5,3470.2,0.05762643]
[1718404703358,0.94417038,3470.5,3470.1,0.678]
[1718404705407,0.89093165,3470.4,3470.1,0.678]
[1718404705569,0.94417038,3470.5,3470.1,0.678]
[1718404705902,0.89093165,3470.4,3470.1,0.678]
[1718404706217,0.05141839,3470.3,3470.1,0.678]
[1718404706976,0.05141839,3470.3,3469.7,2.4711]
[1718404707269,0.05141839,3470.3,3470.0,0.678]
[1718404708410,0.05141839,3470.3,3469.7,2.4711]
[1718404708716,0.05141839,3470.3,3469.9,0.678]
[1718404710003,0.05141839,3470.3,3469.8,0.678]
[1718404710312,0.94235004,3470.3,3470.0,0.678]
[1718404710614,0.05141839,3470.3,3470.0,0.678]
[1718404711814,0.05141839,3470.3,3469.7,2.4711]
[1718404712002,0.05141839,3470.3,3469.9,0.678]
[1718404712402,0.94235004,3470.3,3469.9,0.678]
[1718404712791,0.26488822,3470.3,3469.9,0.678]
[1718404713335,1.15581987,3470.3,3469.8,0.678]
[1718404713736,1.15581987,3470.3,3469.7,2.4711]
[1718404713881,1.15581987,3470.3,3469.3,2.3883]
[1718404713882,1.56893165,3470.2,3469.3,2.3883]
[1718404714080,0.89093165,3470.1,3469.4,0.678]
[1718404714280,0.94212516,3470.1,3469.4,0.71740985]
[1718404714839,0.94212516,3470.1,3469.4,0.678]
[1718404715780,0.94212516,3470.1,3469.6,0.678]
[1718404717380,1.24471949,3470.1,3469.3,2.3883]
[1718404717583,1.24471949,3470.1,3469.4,0.678]
[1718404718788,1.24471949,3470.1,3469.6,0.678]
[1718404720317,0.35378784,3470.1,3469.6,0.678]
[1718404723623,0.35378784,3470.1,3469.4,0.678]
[1718404723828,0.26505376,3470.0,3469.4,0.678]
[1718404724218,0.05109405,3469.9,3469.4,0.678]
[1718404727630,0.05109405,3469.9,3469.3,2.3883]
[1718404732203,0.05109405,3469.9,3469.2,0.678]
[1718404735912,1.56893165,3470.2,3469.2,0.678]
[1718404736250,1.48584457,3470.5,3470.1,0.678]
[1718404736251,0.89093165,3470.5,3470.1,0.678]
[1718404736451,0.89093165,3470.5,3469.3,1.49101529]
[1718404736452,0.89093165,3470.7,3470.4,0.678]
[1718404736638,0.89093165,3471.0,3470.4,0.678]
[1718404736841,2.54076125,3471.0,3470.4,0.678]
[1718404737354,2.54076125,3471.0,3470.2,3.0051]
[1718404737552,0.89093165,3470.9,3470.2,3.0051]
[1718404738750,2.54076125,3471.0,3470.2,3.0051]
[1718404739069,1.3320426,3470.9,3470.2,3.0051]
[1718404739248,0.44111095,3470.9,3470.2,3.0051]
[1718404740357,1.3320426,3470.9,3470.2,2.3271]
[1718404740657,2.0100426,3470.9,3470.2,2.3271]
[1718404740859,2.32437679,3470.8,3469.9,2.3718]
[1718404741029,0.678,3470.7,3469.9,2.3718]
[1718404741228,2.11144514,3470.7,3469.9,2.3718]
[1718404741730,0.678,3470.5,3469.9,2.3718]
[1718404742140,0.678,3470.5,3469.6,0.678]
[1718404742340,1.02675988,3470.5,3469.6,3.0498]
[1718404742935,0.34875988,3470.5,3469.6,3.0498]
[1718404743238,3.00237679,3470.7,3469.8,0.678]
[1718404743431,1.98344514,3470.6,3469.8,0.678]
[1718404747962,0.04749656,3470.5,3469.8,0.678]
[1718404750341,0.04749656,3470.5,3470.0,0.678]
[1718404750779,0.89093165,3470.9,3470.0,0.678]
[1718404750983,0.04749318,3470.4,3470.0,0.678]
[1718404751277,0.04753064,3470.3,3470.0,0.678]
[1718404751475,2.32437679,3470.9,3470.0,0.678]
[1718404751656,0.04752726,3470.2,3469.9,2.3213]
[1718404751977,0.678,3470.8,3470.0,0.678]
[1718404752179,0.30023768,3470.7,3470.0,0.678]
[1718404752342,0.34778182,3470.7,3470.0,0.678]
[1718404753975,0.04754414,3470.7,3469.9,2.3213]
[1718404754177,0.04754414,3470.7,3470.1,0.678]
[1718404754373,0.89093165,3470.9,3470.1,0.678]
[1718404754567,0.0460066,3470.6,3470.1,0.678]
[1718404754763,0.89093165,3470.9,3470.1,0.678]
[1718404754964,0.04600322,3470.5,3470.1,0.678]
[1718404755158,1.38875116,3470.9,3470.1,0.678]
[1718404755359,0.04599985,3470.4,3470.1,0.678]
[1718404755557,0.89093165,3470.9,3470.1,0.678]
[1718404755760,0.89093165,3470.9,3470.1,0.69641854]
[1718404755761,0.04599647,3470.3,3470.1,0.69641854]
[1718404755956,0.89093165,3470.9,3470.1,0.69641854]
[1718404756261,0.32121822,3470.8,3470.4,2.9993]
[1718404756458,0.0460387,3470.8,3470.4,2.3213]
[1718404756647,1.34183391,3471.1,3470.4,2.9993]
[1718404756848,0.04602082,3470.7,3470.4,2.9993]
[1718404757154,2.77527905,3471.1,3470.4,2.9993]
[1718404757357,1.8843474,3471.1,3470.4,2.9993]
[1718404757551,0.44277946,3471.0,3470.4,2.9993]
[1718404757750,0.44277946,3471.0,3470.4,2.3213]
[1718404760489,0.04601673,3471.0,3470.9,2.9993]
[1718404760913,8.20093165,3471.9,3470.9,2.3213]
[1718404761065,1.43344514,3471.8,3471.1,0.678]
[1718404761256,1.98854193,3471.8,3471.1,0.678]
[1718404762384,1.98854193,3471.8,3470.9,2.3213]
[1718404762586,1.98854193,3471.8,3471.0,0.678]
[1718404762885,0.04540509,3471.7,3471.0,0.678]
[1718404763070,1.47885023,3471.7,3471.0,0.678]
[1718404763477,0.04540509,3471.7,3471.2,2.9993]
[1718404763674,2.42851604,3472.4,3471.6,0.678]
[1718404763675,1.34174622,3472.4,3471.6,0.678]
[1718404763987,0.45081457,3472.4,3471.8,2.3213]
[1718404764297,0.89093165,3473.1,3472.0,0.678]
[1718404764464,0.678,3473.0,3472.0,0.678]
[1718404764656,0.37414475,3472.9,3472.1,0.0565584]
[1718404764996,0.678,3472.8,3471.8,2.9993]
[1718404767008,0.37414475,3472.9,3472.0,0.678]
[1718404767304,0.678,3473.0,3472.0,0.678]
[1718404767792,0.678,3472.8,3472.0,0.678]
[1718404768156,0.678,3472.9,3472.0,0.678]
[1718404768769,0.73907066,3473.2,3472.0,0.678]
[1718404768974,0.678,3472.9,3472.0,0.678]
[1718404769656,0.678,3472.7,3471.8,2.3213]
[1718404769892,0.88914451,3472.7,3471.8,2.9993]
[1718404770198,1.43344514,3472.9,3472.0,0.678]
[1718404770398,1.43344514,3472.9,3472.0,0.7355975]
[1718404770691,0.45067066,3473.2,3471.0,3.29993]
[1718404770692,0.45067066,3473.2,3472.6,0.678]
[1718404770899,0.678,3473.5,3472.6,0.678]
[1718404773193,0.678,3473.5,3472.2,2.3085]
[1718404773410,0.678,3473.5,3472.6,0.678]
[1718404773616,0.73899169,3473.8,3473.0,2.3085]
[1718404773617,0.45059169,3473.8,3473.0,2.3085]
[1718404773786,2.56203683,3473.8,3473.0,2.3085]
[1718404775383,1.88403683,3473.8,3473.0,2.3085]
[1718404775583,0.48840368,3473.7,3473.0,2.3085]
[1718404775993,2.56203683,3473.8,3473.0,2.3085]
[1718404775994,1.88403683,3473.8,3473.0,2.3085]
[1718404776203,2.56203683,3473.8,3473.0,2.3085]
[1718404777036,1.12859169,3473.8,3473.0,2.3085]
[1718404777233,0.678,3473.9,3473.0,2.3085]
[1718404777387,0.678,3473.9,3473.0,2.60715]
[1718404778223,0.04609879,3473.8,3473.0,2.60715]
[1718404778531,0.678,3473.7,3473.0,2.3085]
[1718404778984,0.04609205,3473.6,3473.0,2.3085]
[1718404785156,0.04609205,3473.6,3473.5,2.937]
[1718404785358,0.45052575,3474.2,3473.5,3.2307]
[1718404785712,0.04283885,3474.1,3473.5,2.5527]
[1718404786025,0.04283885,3474.1,3473.5,3.2307]
[1718404788353,0.04283885,3474.1,3473.7,0.678]
[1718404788849,0.45052575,3474.2,3473.7,0.678]
[1718404789051,0.04284977,3474.1,3473.7,0.678]
[1718404789851,0.04284977,3474.1,3473.8,2.259]
[1718404794540,0.04284977,3474.1,3474.0,2.9581]
[1718404794865,1.85485056,3475.0,3474.0,2.9581]
[1718404795182,0.04191747,3474.9,3474.2,0.678]
[1718404795980,1.35728798,3475.0,3474.2,0.678]
[1718404796187,0.0419239,3474.8,3474.2,0.678]
[1718404796479,0.04192406,3474.7,3474.2,0.678]
[1718404796890,2.58528798,3474.9,3474.0,2.9581]
[1718404797095,0.04191952,3474.6,3474.0,2.2801]
[1718404797277,2.11144514,3474.5,3473.5,0.678]
[1718404797478,1.47570372,3474.5,3473.7,0.678]
[1718404797694,1.47570372,3474.5,3473.6,2.2801]
[1718404798003,1.47570372,3474.5,3473.7,0.678]
[1718404798192,0.04225858,3474.5,3473.8,0.29581]
[1718404798362,0.04225858,3474.5,3473.9,0.73556189]
[1718404798709,0.04225858,3474.5,3474.1,0.678]
[1718404798995,0.04225858,3474.5,3474.0,2.2801]
[1718404799316,1.35756442,3474.8,3474.0,2.2801]
[1718404799317,0.04215761,3474.4,3474.0,2.2801]
[1718404799524,1.35756442,3474.8,3474.1,0.22801]
[1718404799683,0.04215541,3474.3,3474.0,2.2801]
[1718404799878,1.85509912,3474.8,3474.0,2.2801]
[1718404800115,0.0421683,3474.7,3474.0,2.2801]
[1718404800290,1.89726742,3474.7,3474.0,2.2801]
[1718404800495,0.0421683,3474.7,3474.1,0.05756217]
[1718404800890,1.39973272,3474.7,3474.0,2.2801]
[1718404801090,1.39973272,3474.7,3474.0,2.50811]
[1718404801296,1.89726742,3474.7,3474.0,2.2801]
[1718404801625,3.28854426,3474.6,3474.0,2.2801]
[1718404801932,1.35756442,3474.4,3473.6,2.3746]
[1718404802142,3.28854426,3474.3,3473.6,2.3746]
[1718404802291,2.40509912,3474.2,3473.6,2.3746]
[1718404802484,3.88077908,3474.2,3473.6,2.3746]
[1718404803310,0.4975347,3474.1,3473.6,2.3746]
[1718404803694,0.04222808,3474.0,3473.9,3.9976]
[1718404804337,1.35756442,3475.3,3474.0,2.3746]
[1718404804526,1.35756442,3475.4,3474.2,2.3746]
[1718404804704,0.04085381,3475.2,3474.2,2.3746]
[1718404804898,1.47430054,3475.3,3474.2,2.3746]
[1718404805236,0.04084866,3475.1,3474.2,2.3746]
[1718404805389,0.04085735,3475.2,3474.2,2.3746]
[1718404805589,0.04096088,3475.0,3474.2,2.3746]
[1718404805791,0.04096347,3475.1,3474.2,2.61206]
[1718404806010,0.04095674,3474.9,3474.2,2.61206]
[1718404806325,0.04095337,3474.8,3474.3,0.02238481]
[1718404806717,1.43344514,3475.3,3474.3,0.02238481]
[1718404807008,0.04092227,3474.7,3474.3,0.02238481]
[1718404807220,1.35785225,3475.4,3474.4,0.26344448]
[1718404807523,0.55,3475.3,3474.4,0.26344448]
[1718404807818,0.59102002,3475.3,3474.4,0.26344448]
[1718404808538,0.59102002,3475.3,3474.4,0.30055766]
[1718404808840,0.59102002,3475.3,3474.4,0.26344448]
[1718404809422,1.43344514,3475.2,3474.2,2.3746]
[1718404809735,1.35785225,3475.0,3474.2,2.3746]
[1718404809903,1.35785225,3474.8,3474.2,2.3746]
[1718404810417,0.04100655,3474.9,3474.2,2.3746]
[1718404810418,0.04099913,3474.7,3474.2,2.3746]
[1718404811011,1.35785225,3474.9,3474.2,2.3746]
[1718404811239,0.04098785,3474.6,3474.2,2.3746]
[1718404811439,1.35785225,3474.9,3474.2,2.61206]
[1718404811644,0.04098448,3474.5,3474.2,2.61206]
[1718404811809,1.35785225,3474.9,3474.2,2.61206]
[1718404812142,0.04098228,3474.4,3474.2,2.3746]
[1718404812444,1.35785225,3475.1,3474.2,2.3746]
[1718404812612,1.35785225,3475.3,3474.3,2.3331]
[1718404812806,1.35785225,3475.3,3474.2,1.43344514]
[1718404812807,0.03819098,3475.0,3474.4,0.05752017]
[1718404813044,0.03819771,3475.2,3474.5,2.3331]
[1718404813244,7.4317549,3476.3,3474.6,0.29657887]
[1718404813245,0.03818878,3474.9,3474.6,0.29657887]
[1718404813408,1.35785225,3475.7,3474.6,0.23906202]
[1718404813610,1.35785225,3475.6,3474.6,0.23906202]
[1718404813915,1.3960646,3475.6,3474.6,0.23906202]
[1718404814318,0.03821235,3475.6,3474.7,3.76654514]
[1718404814520,0.03821235,3475.6,3475.5,3.9561]
[1718404814706,0.1217549,3476.3,3475.5,3.9561]
[1718404814707,0.1217549,3476.3,3475.5,2.3331]
[1718404814907,0.1217549,3476.3,3475.6,0.05607447]
[1718404815143,0.0368618,3476.2,3475.6,0.05607447]
[1718404815307,0.1217549,3476.3,3475.6,1.48951961]
[1718404815507,0.1217549,3476.3,3475.8,2.3331]
[1718404815714,0.1217549,3476.3,3475.9,0.0564363]
[1718404815955,0.1217549,3476.3,3475.8,2.3331]
[1718404817016,0.03712907,3476.2,3475.8,2.3331]
[1718404817417,0.1217549,3476.3,3475.8,2.3331]
[1718404817750,0.03712907,3476.2,3475.8,2.3331]
[1718404818109,0.1217549,3476.3,3475.8,2.3331]
[1718404818307,0.1217549,3476.3,3475.8,2.56641]
[1718404818534,0.03712907,3476.2,3475.9,0.0575311]
[1718404818943,0.1217549,3476.3,3475.9,3.11397624]
[1718404819155,0.1217549,3476.3,3476.0,3.76654514]
[1718404819314,7.316,3477.9,3476.2,2.3331]
[1718404819516,2.30098639,3477.8,3476.3,0.6824065]
[1718404819714,1.47095215,3477.8,3476.3,0.6824065]
[1718404820073,2.14691949,3477.8,3476.2,2.3331]
[1718404820218,1.43344514,3477.7,3476.2,2.3331]
[1718404820558,0.03777468,3477.6,3476.2,2.3331]
[1718404820710,1.43344514,3477.5,3476.2,2.3331]
[1718404820915,1.43344514,3477.5,3475.1,2.3331]
[1718404820916,1.623,3477.2,3475.1,2.3331]
[1718404821211,0.29824125,3477.1,3475.5,2.3331]
[1718404821523,1.47120301,3477.1,3475.7,2.3331]
[1718404821855,1.98344514,3477.0,3475.7,2.3331]
[1718404822338,0.03775114,3476.9,3475.7,2.3331]
[1718404822725,3.0,3477.5,3475.7,2.3331]
[1718404822938,0.03774661,3476.8,3475.7,2.3331]
[1718404823109,1.98344514,3477.4,3475.7,2.72871]
[1718404823313,1.98344514,3477.4,3475.7,2.3331]
[1718404823513,0.03776225,3477.3,3475.7,2.3331]
[1718404823714,1.43344514,3477.2,3475.7,2.3331]
[1718404824236,0.03775787,3477.1,3475.7,2.3331]
[1718404825156,0.03775787,3477.1,3475.9,2.3331]
[1718404825455,0.03775787,3477.1,3476.7,2.3331]
[1718404825752,0.006,3477.9,3477.1,2.3331]
[1718404825949,0.006,3477.9,3477.2,0.04552941]
[1718404826113,0.006,3477.9,3477.1,2.3331]
[1718404829255,1.43944514,3477.9,3476.5,2.3331]
[1718404829550,2.12738965,3477.8,3476.5,2.3331]
[1718404830058,2.12738965,3477.8,3476.6,1.43344514]
[1718404830059,0.14394451,3477.8,3476.6,1.43344514]
[1718404830217,0.006,3477.9,3476.6,1.43344514]
[1718404830857,1.43344514,3477.8,3476.5,2.3331]
[1718404831119,0.006,3477.9,3476.5,2.3331]
[1718404831325,0.006,3477.9,3476.6,1.43344514]
[1718404831632,0.006,3477.9,3476.5,2.3331]
[1718404831951,0.006,3477.9,3476.5,3.08241]
[1718404832365,0.006,3477.9,3476.6,1.43344514]
[1718404832715,0.006,3477.9,3476.7,2.3088]
[1718404832938,0.006,3477.9,3476.8,1.43344514]
[1718404833138,0.006,3477.9,3476.7,2.3088]
[1718404833354,0.006,3477.9,3476.7,3.74224514]
[1718404833652,0.006,3477.9,3476.7,4.19140065]
[1718404833818,0.006,3477.9,3476.8,4.43344514]
[1718404834017,0.006,3477.9,3476.8,4.44896936]
[1718404834222,0.006,3477.9,3476.9,0.04677814]
[1718404834533,0.006,3477.9,3476.9,1.48022328]
[1718404834740,0.006,3477.9,3477.0,0.72381788]
[1718404835219,0.006,3477.9,3476.7,2.75795551]
[1718404835522,0.006,3477.9,3476.8,1.43344514]
[1718404837118,0.006,3477.9,3476.9,2.3088]
[1718404837356,0.006,3477.9,3477.2,2.3088]
[1718404837662,0.006,3477.9,3477.3,1.43344514]
[1718404837957,0.006,3477.9,3477.4,0.89022451]
[1718404838119,0.006,3477.9,3477.5,1.43344514]
[1718404839032,0.006,3477.9,3477.4,0.89022451]
[1718404839366,0.006,3477.9,3477.2,2.3088]
[1718404843248,0.006,3477.9,3476.8,3.0]
[1718404843461,0.006,3477.9,3476.7,2.75795551]
[1718404843631,0.006,3477.9,3476.7,2.3088]
[1718404846075,1.43344514,3477.8,3476.3,2.3088]
[1718404846389,1.91253351,3477.7,3476.3,2.3088]
[1718404846532,1.43344514,3477.6,3476.3,2.3088]
[1718404846726,0.55,3477.5,3476.3,2.3088]
[1718404846930,0.26039295,3477.4,3476.3,2.3088]
[1718404847168,0.33087169,3477.4,3476.3,2.3088]
[1718404848182,0.07047874,3477.4,3476.4,1.43344514]
[1718404848360,0.07047874,3477.4,3476.4,4.43344514]
[1718404848559,0.006,3477.9,3476.4,4.43344514]
[1718404851960,0.006,3477.9,3476.4,3.0]
[1718404852156,0.006,3477.9,3476.5,0.53088]
[1718404852359,0.006,3477.9,3476.4,3.0]
[1718404852581,1.50148826,3477.8,3476.3,2.3088]
[1718404852829,1.90976051,3477.7,3476.3,2.3088]
[1718404853113,1.35976051,3477.5,3476.3,2.3088]
[1718404853265,1.42771322,3477.4,3476.0,2.70328928]
[1718404853460,1.81854299,3477.4,3476.1,0.50701893]
[1718404853678,1.35976051,3477.3,3476.1,0.50701893]
[1718404854100,0.06794792,3477.2,3476.1,0.50701893]
[1718404854506,1.43344514,3477.1,3476.0,2.70328928]
[1718404854808,1.97770363,3477.0,3476.0,2.70328928]
[1718404855007,1.35976051,3476.8,3476.0,2.70328928]
[1718404855216,1.35976051,3476.4,3476.0,2.70328928]
[1718404855512,1.42743383,3476.3,3476.0,2.70328928]
[1718404855669,0.06767332,3476.3,3476.0,2.70328928]
[1718404856060,0.0673169,3476.2,3476.0,2.70328928]
[1718404856501,1.35976051,3477.0,3476.0,2.70328928]
[1718404856695,1.98344514,3476.9,3476.0,2.70328928]
[1718404856913,0.33432056,3476.8,3476.0,2.70328928]
[1718404857227,0.06711632,3476.7,3476.1,0.03199614]
[1718404857361,0.06711632,3476.7,3476.0,2.70328928]
[1718404857567,2.03839028,3477.4,3476.0,2.70328928]
[1718404857864,2.79320565,3477.3,3476.0,2.70328928]
[1718404858061,2.8604063,3477.3,3476.0,2.70328928]
[1718404858265,0.35390361,3477.2,3476.0,2.70328928]
[1718404858497,1.43344514,3477.1,3476.0,2.70328928]
[1718404858671,0.55,3477.0,3476.0,2.70328928]
[1718404858874,1.43344514,3476.9,3476.0,2.70328928]
[1718404859106,0.55,3476.8,3476.0,2.70328928]
[1718404859294,1.82949449,3476.7,3476.0,2.70328928]
[1718404859512,1.89675274,3476.7,3476.0,2.70328928]
[1718404860476,0.06725825,3476.7,3476.0,2.70328928]
[1718404860685,0.06725825,3476.7,3476.1,3.85742096]
[1718404861002,0.006,3477.9,3476.1,3.85742096]
[1718404861310,0.006,3477.9,3476.1,3.80034514]
[1718404861311,1.43344514,3477.8,3476.1,3.80034514]
[1718404861607,1.50074707,3477.8,3476.1,3.80034514]
[1718404861773,0.06730193,3477.8,3476.2,0.86636344]
[1718404861975,0.06730193,3477.8,3476.4,2.3669]
[1718404862173,0.06730193,3477.8,3476.5,1.43344514]
[1718404862507,0.006,3477.9,3476.5,1.43344514]
[1718404862711,0.006,3477.9,3476.5,4.43344514]
[1718404862877,0.006,3477.9,3476.6,1.2376844]
[1718404863208,0.006,3477.9,3476.6,5.67112954]
[1718404863712,0.006,3477.9,3476.8,2.3669]
[1718404864009,0.006,3477.9,3476.9,3.65094329]
[1718404864183,0.006,3477.9,3477.0,4.35034514]
[1718404864386,0.49691699,3479.6,3477.5,2.3669]
[1718404864387,0.89093165,3479.6,3477.5,2.3669]
[1718404864588,1.43344514,3479.5,3477.6,1.49093678]
[1718404864788,1.4989234,3479.5,3477.6,1.49093678]
[1718404864992,1.4989234,3479.5,3477.6,4.49093678]
[1718404865875,0.06547826,3479.5,3477.6,4.49093678]
[1718404866077,0.06547826,3479.5,3477.8,2.16]
[1718404866313,0.06547826,3479.5,3477.9,0.05748571]